[Event "Early-Titled-Tuesday-Blitz-September-05-2023"]
[Site "Chess.com"]
[Date "2023.09.05"]
[Round "5"]
[White "SAInt_666"]
[Black "malakismayil"]
[Result "0-1"]
[WhiteElo "2692"]
[BlackElo "2519"]
[TimeControl "180+1"]
[EndTime "8:54:54 PDT"]
[Termination "malakismayil won by checkmate"]

1. e4 {[%clk 0:03:00.9]} 1... e5 {[%clk 0:02:59.5]} 2. Nf3 {[%clk 0:03:00.5]}
2... Nc6 {[%clk 0:02:59.7]} 3. Bc4 {[%clk 0:03:01.2]} 3... Bc5 {[%clk
0:02:59.2]} 4. c3 {[%clk 0:03:01.4]} 4... Nf6 {[%clk 0:02:59.4]} 5. d3 {[%clk
0:03:02]} 5... d6 {[%clk 0:02:58.5]} 6. O-O {[%clk 0:03:02.1]} 6... h6 {[%clk
0:02:58.3]} 7. Nbd2 {[%clk 0:03:01.9]} 7... O-O {[%clk 0:02:58.6]} 8. h3 {[%clk
0:03:00.8]} 8... Bb6 {[%clk 0:02:54.3]} 9. Re1 {[%clk 0:02:59.5]} 9... Re8
{[%clk 0:02:54.4]} 10. Nf1 {[%clk 0:02:58.1]} 10... Be6 {[%clk 0:02:54.5]} 11.
Bb5 {[%clk 0:02:58.3]} 11... Bd7 {[%clk 0:02:48.4]} 12. Ng3 {[%clk 0:02:52]}
12... a6 {[%clk 0:02:48.3]} 13. Ba4 {[%clk 0:02:51.4]} 13... Ne7 {[%clk
0:02:45.7]} 14. Bc2 {[%clk 0:02:51]} 14... Ng6 {[%clk 0:02:45.5]} 15. d4 {[%clk
0:02:50.8]} 15... Bc6 {[%clk 0:02:28.9]} 16. Nf5 {[%clk 0:02:27.7]} 16... exd4
{[%clk 0:02:27.6]} 17. Bxh6 {[%clk 0:02:25.2]} 17... gxh6 {[%clk 0:01:45]} 18.
Qd2 {[%clk 0:02:23.6]} 18... Nxe4 {[%clk 0:00:58.6]} 19. Qxh6 {[%clk 0:02:12.9]}
19... Qf6 {[%clk 0:00:57.2]} 20. Qh5 {[%clk 0:01:22.2]} 20... d3 {[%clk
0:00:46.4]} 21. Nh6+ {[%clk 0:00:53]} 21... Kf8 {[%clk 0:00:34.1]} 22. Ng4
{[%clk 0:00:52.5]} 22... Qh8 {[%clk 0:00:26.4]} 23. Qxh8+ {[%clk 0:00:44.9]}
23... Nxh8 {[%clk 0:00:27.3]} 24. Bxd3 {[%clk 0:00:45.8]} 24... f5 {[%clk
0:00:27.2]} 25. Ne3 {[%clk 0:00:39.3]} 25... Ng6 {[%clk 0:00:20.7]} 26. Nd4
{[%clk 0:00:36.5]} 26... Bxd4 {[%clk 0:00:19.5]} 27. cxd4 {[%clk 0:00:37.4]}
27... f4 {[%clk 0:00:18.7]} 28. Ng4 {[%clk 0:00:27.4]} 28... Kg7 {[%clk
0:00:18.9]} 29. Rac1 {[%clk 0:00:26.5]} 29... Nf6 {[%clk 0:00:15.7]} 30. Rxe8
{[%clk 0:00:20.5]} 30... Rxe8 {[%clk 0:00:14.9]} 31. Nxf6 {[%clk 0:00:21.4]}
31... Kxf6 {[%clk 0:00:15.2]} 32. d5 {[%clk 0:00:22.2]} 32... Bxd5 {[%clk
0:00:12.5]} 33. Rxc7 {[%clk 0:00:22.8]} 33... Re1+ {[%clk 0:00:09.8]} 34. Kh2
{[%clk 0:00:23]} 34... Ne5 {[%clk 0:00:10.5]} 35. Bc2 {[%clk 0:00:19]} 35... Re2
{[%clk 0:00:09.1]} 36. Kg1 {[%clk 0:00:18.2]} 36... f3 {[%clk 0:00:04]} 37. gxf3
{[%clk 0:00:18]} 37... Nxf3+ {[%clk 0:00:04.1]} 38. Kf1 {[%clk 0:00:18.5]} 38...
Re1+ {[%clk 0:00:04]} 39. Kg2 {[%clk 0:00:18.2]} 39... Nd4+ {[%clk 0:00:04]} 40.
Kh2 {[%clk 0:00:15.7]} 40... Rc1 {[%clk 0:00:04.6]} 41. Rd7 {[%clk 0:00:10.5]}
41... Rxc2 {[%clk 0:00:04.9]} 42. Rxd6+ {[%clk 0:00:11.2]} 42... Ke5 {[%clk
0:00:05.7]} 43. Rd8 {[%clk 0:00:12]} 43... Rxf2+ {[%clk 0:00:05.7]} 44. Kg3
{[%clk 0:00:12.7]} 44... Rg2+ {[%clk 0:00:05.4]} 45. Kh4 {[%clk 0:00:11.4]}
45... Nf5+ {[%clk 0:00:06.1]} 46. Kh5 {[%clk 0:00:12.3]} 46... Bf3# {[%clk
0:00:06.2]} 0-1

[Event "Early-Titled-Tuesday-Blitz-September-05-2023"]
[Site "Chess.com"]
[Date "2023.09.05"]
[Round "5"]
[White "MITerryble"]
[Black "Msb2"]
[Result "1-0"]
[WhiteElo "2944"]
[BlackElo "3097"]
[TimeControl "180+1"]
[EndTime "8:54:55 PDT"]
[Termination "MITerryble won by checkmate"]

1. e4 {[%clk 0:03:00.9]} 1... e6 {[%clk 0:03:00.1]} 2. d4 {[%clk 0:03:01]} 2...
d5 {[%clk 0:03:00.8]} 3. exd5 {[%clk 0:03:01.6]} 3... exd5 {[%clk 0:03:01.7]} 4.
Nf3 {[%clk 0:03:02]} 4... Nc6 {[%clk 0:03:02.1]} 5. Bd3 {[%clk 0:02:57.3]} 5...
Nb4 {[%clk 0:03:02.2]} 6. Be2 {[%clk 0:02:55.1]} 6... Bf5 {[%clk 0:03:01.7]} 7.
Na3 {[%clk 0:02:55.4]} 7... Nc6 {[%clk 0:03:02.1]} 8. O-O {[%clk 0:02:52.2]}
8... Bxa3 {[%clk 0:03:00]} 9. bxa3 {[%clk 0:02:53.1]} 9... Nge7 {[%clk
0:02:59.3]} 10. c4 {[%clk 0:02:47.2]} 10... O-O {[%clk 0:02:57.3]} 11. Re1
{[%clk 0:02:45.3]} 11... Re8 {[%clk 0:02:55.2]} 12. Bg5 {[%clk 0:02:32.1]} 12...
Qd7 {[%clk 0:02:47.2]} 13. Rc1 {[%clk 0:02:26.2]} 13... Be6 {[%clk 0:02:29.9]}
14. c5 {[%clk 0:01:46.4]} 14... f6 {[%clk 0:02:11.1]} 15. Bf4 {[%clk 0:01:43.2]}
15... Ng6 {[%clk 0:02:00.9]} 16. Be3 {[%clk 0:01:30.6]} 16... Bf5 {[%clk
0:01:56.8]} 17. Qb3 {[%clk 0:01:29.5]} 17... Rab8 {[%clk 0:01:56.4]} 18. Nd2
{[%clk 0:01:18.7]} 18... Kh8 {[%clk 0:01:53.6]} 19. Qa4 {[%clk 0:01:15.8]} 19...
a6 {[%clk 0:01:53.2]} 20. Nb3 {[%clk 0:01:10.6]} 20... Bg4 {[%clk 0:01:50.7]}
21. Bf1 {[%clk 0:01:08.6]} 21... Nh4 {[%clk 0:01:50.2]} 22. Na5 {[%clk
0:00:56.2]} 22... Nxa5 {[%clk 0:01:31.9]} 23. Qxa5 {[%clk 0:00:57.1]} 23... Qf5
{[%clk 0:01:29.9]} 24. Qxc7 {[%clk 0:00:55.1]} 24... Qh5 {[%clk 0:01:10.9]} 25.
Bf4 {[%clk 0:00:48.1]} 25... Rec8 {[%clk 0:01:03.5]} 26. Qe7 {[%clk 0:00:38.6]}
26... Re8 {[%clk 0:00:59.7]} 27. Qc7 {[%clk 0:00:38.6]} 27... Rec8 {[%clk
0:00:59.7]} 28. Qb6 {[%clk 0:00:39.1]} 28... Bf3 {[%clk 0:00:43.2]} 29. Bxb8
{[%clk 0:00:34.2]} 29... Rxb8 {[%clk 0:00:44.1]} 30. Qc7 {[%clk 0:00:31.8]}
30... Rg8 {[%clk 0:00:39.5]} 31. gxf3 {[%clk 0:00:27.2]} 31... Nxf3+ {[%clk
0:00:35.5]} 32. Kh1 {[%clk 0:00:27.6]} 32... Nxe1 {[%clk 0:00:26.3]} 33. Rxe1
{[%clk 0:00:27.6]} 33... Qf3+ {[%clk 0:00:27.2]} 34. Kg1 {[%clk 0:00:26.1]}
34... Qc3 {[%clk 0:00:26.3]} 35. Rd1 {[%clk 0:00:20.2]} 35... Qc2 {[%clk
0:00:24.2]} 36. Re1 {[%clk 0:00:20.6]} 36... Qc3 {[%clk 0:00:24.8]} 37. Re3
{[%clk 0:00:20.2]} 37... Qxd4 {[%clk 0:00:25.4]} 38. Qd6 {[%clk 0:00:19.1]}
38... Qg4+ {[%clk 0:00:21.2]} 39. Rg3 {[%clk 0:00:19]} 39... Qe4 {[%clk
0:00:21.9]} 40. h3 {[%clk 0:00:15.6]} 40... d4 {[%clk 0:00:21.9]} 41. Rg4 {[%clk
0:00:16]} 41... Qc2 {[%clk 0:00:18.1]} 42. Qxd4 {[%clk 0:00:15.7]} 42... Qxa2
{[%clk 0:00:17.6]} 43. Qe3 {[%clk 0:00:15.9]} 43... Qc2 {[%clk 0:00:14.2]} 44.
Bg2 {[%clk 0:00:15.9]} 44... Rd8 {[%clk 0:00:12.5]} 45. Rd4 {[%clk 0:00:15.4]}
45... Qb1+ {[%clk 0:00:12.9]} 46. Kh2 {[%clk 0:00:15.3]} 46... Rc8 {[%clk
0:00:13.6]} 47. Qe6 {[%clk 0:00:12.1]} 47... Rf8 {[%clk 0:00:11.7]} 48. Qe7
{[%clk 0:00:11.4]} 48... Rg8 {[%clk 0:00:11.8]} 49. Rd8 {[%clk 0:00:11.1]} 49...
h6 {[%clk 0:00:12.4]} 50. Rxg8+ {[%clk 0:00:09.7]} 50... Kxg8 {[%clk 0:00:13.3]}
51. Qe8+ {[%clk 0:00:10.3]} 51... Kh7 {[%clk 0:00:14.2]} 52. Be4+ {[%clk
0:00:10.6]} 52... f5 {[%clk 0:00:15.1]} 53. Bxb1 {[%clk 0:00:10.3]} 53... g6
{[%clk 0:00:16]} 54. Qf7+ {[%clk 0:00:10.3]} 54... Kh8 {[%clk 0:00:16.6]} 55.
Ba2 {[%clk 0:00:10.8]} 55... f4 {[%clk 0:00:17.5]} 56. Qg8# {[%clk 0:00:11.3]}
1-0

[Event "Early-Titled-Tuesday-Blitz-September-05-2023"]
[Site "Chess.com"]
[Date "2023.09.05"]
[Round "5"]
[White "whiteglovethief"]
[Black "Durarbayli"]
[Result "0-1"]
[WhiteElo "2517"]
[BlackElo "2875"]
[TimeControl "180+1"]
[EndTime "8:54:55 PDT"]
[Termination "Durarbayli won on time"]

1. d4 {[%clk 0:03:00.9]} 1... Nf6 {[%clk 0:02:44.8]} 2. c4 {[%clk 0:03:00]} 2...
e6 {[%clk 0:02:45.7]} 3. Nf3 {[%clk 0:02:58.7]} 3... b6 {[%clk 0:02:40.2]} 4. a3
{[%clk 0:02:56.6]} 4... Bb7 {[%clk 0:02:38.5]} 5. Nc3 {[%clk 0:02:55.8]} 5...
Be7 {[%clk 0:02:05]} 6. Qc2 {[%clk 0:02:49]} 6... c5 {[%clk 0:02:03.6]} 7. e4
{[%clk 0:02:28]} 7... cxd4 {[%clk 0:02:00.9]} 8. Nxd4 {[%clk 0:02:28]} 8... d6
{[%clk 0:02:00.3]} 9. Be2 {[%clk 0:02:25.9]} 9... a6 {[%clk 0:01:59.2]} 10. O-O
{[%clk 0:02:24.3]} 10... Qc7 {[%clk 0:01:59.6]} 11. Be3 {[%clk 0:02:21.8]} 11...
Nbd7 {[%clk 0:02:00.2]} 12. Rac1 {[%clk 0:02:18.4]} 12... Rc8 {[%clk 0:02:00.7]}
13. b4 {[%clk 0:02:15]} 13... Qb8 {[%clk 0:02:01.3]} 14. Qb3 {[%clk 0:02:13.2]}
14... Nxe4 {[%clk 0:01:59.5]} 15. Nxe4 {[%clk 0:02:12.7]} 15... Bxe4 {[%clk
0:02:00.4]} 16. Rfd1 {[%clk 0:02:07.2]} 16... Qa8 {[%clk 0:01:51.9]} 17. f3
{[%clk 0:02:03.7]} 17... Bb7 {[%clk 0:01:50]} 18. a4 {[%clk 0:02:01]} 18... O-O
{[%clk 0:01:49.8]} 19. a5 {[%clk 0:02:00.9]} 19... bxa5 {[%clk 0:01:49.9]} 20.
bxa5 {[%clk 0:01:59.8]} 20... Nc5 {[%clk 0:01:43.2]} 21. Qa2 {[%clk 0:01:57.7]}
21... Rfd8 {[%clk 0:01:43.4]} 22. Rb1 {[%clk 0:01:56.3]} 22... d5 {[%clk
0:01:42.9]} 23. cxd5 {[%clk 0:01:52.4]} 23... Bxd5 {[%clk 0:01:43.8]} 24. Qa1
{[%clk 0:01:49.9]} 24... Bf6 {[%clk 0:01:43.6]} 25. Bf2 {[%clk 0:01:42.1]} 25...
Nb3 {[%clk 0:01:38.3]} 26. Qa4 {[%clk 0:01:41.9]} 26... Nc5 {[%clk 0:01:22.8]}
27. Qa3 {[%clk 0:01:40.1]} 27... Be7 {[%clk 0:01:22]} 28. Qa1 {[%clk 0:01:29.2]}
28... Bf8 {[%clk 0:01:22]} 29. Rdc1 {[%clk 0:01:14.1]} 29... Rb8 {[%clk
0:01:22]} 30. Bc4 {[%clk 0:01:10.5]} 30... Rxb1 {[%clk 0:01:17.4]} 31. Qxb1
{[%clk 0:01:11.4]} 31... Bxc4 {[%clk 0:01:15]} 32. Rxc4 {[%clk 0:01:12.3]} 32...
Qd5 {[%clk 0:01:15.2]} 33. Rc1 {[%clk 0:01:01.8]} 33... e5 {[%clk 0:01:08.4]}
34. Nf5 {[%clk 0:01:01.7]} 34... Nd3 {[%clk 0:01:06.4]} 35. Rd1 {[%clk
0:01:00.5]} 35... e4 {[%clk 0:00:56.2]} 36. fxe4 {[%clk 0:00:28.8]} 36... Qxe4
{[%clk 0:00:57.1]} 37. Qb6 {[%clk 0:00:20.5]} 37... Qxf5 {[%clk 0:00:51.6]} 38.
Qxd8 {[%clk 0:00:15.7]} 38... Qxf2+ {[%clk 0:00:51.5]} 39. Kh1 {[%clk 0:00:16]}
39... Nf4 {[%clk 0:00:50.9]} 40. Qa8 {[%clk 0:00:12.5]} 40... h5 {[%clk
0:00:48.4]} 41. h3 {[%clk 0:00:09.6]} 41... h4 {[%clk 0:00:40.3]} 42. Rd8 {[%clk
0:00:05.8]} 42... Qe1+ {[%clk 0:00:40.6]} 43. Kh2 {[%clk 0:00:05.6]} 43... Qg3+
{[%clk 0:00:39.2]} 44. Kh1 {[%clk 0:00:05.8]} 44... Ne6 {[%clk 0:00:37.9]} 45.
Re8 {[%clk 0:00:05]} 45... Qe1+ {[%clk 0:00:36]} 46. Kh2 {[%clk 0:00:05.4]}
46... Qxa5 {[%clk 0:00:36.4]} 47. Kh1 {[%clk 0:00:06.2]} 47... Qe1+ {[%clk
0:00:36.1]} 48. Kh2 {[%clk 0:00:06.5]} 48... Qe5+ {[%clk 0:00:34.9]} 49. Kh1
{[%clk 0:00:07.4]} 49... a5 {[%clk 0:00:31]} 50. Qa7 {[%clk 0:00:03.3]} 50...
Qe1+ {[%clk 0:00:29.3]} 51. Kh2 {[%clk 0:00:02.3]} 51... Qg3+ {[%clk 0:00:27.6]}
52. Kh1 {[%clk 0:00:03.2]} 52... Kh7 {[%clk 0:00:20.7]} 53. Qa8 {[%clk
0:00:04.1]} 53... Qe1+ {[%clk 0:00:19.9]} 0-1

[Event "Early-Titled-Tuesday-Blitz-September-05-2023"]
[Site "Chess.com"]
[Date "2023.09.05"]
[Round "5"]
[White "Andrei_Skvortsov"]
[Black "ExchangeAB"]
[Result "1-0"]
[WhiteElo "2635"]
[BlackElo "2435"]
[TimeControl "180+1"]
[EndTime "8:54:55 PDT"]
[Termination "Andrei_Skvortsov won by resignation"]

1. e4 {[%clk 0:03:00.9]} 1... c6 {[%clk 0:02:54.6]} 2. c4 {[%clk 0:02:59.3]}
2... d5 {[%clk 0:02:55.5]} 3. cxd5 {[%clk 0:03:00.2]} 3... cxd5 {[%clk
0:02:55.4]} 4. e5 {[%clk 0:03:01.1]} 4... Nc6 {[%clk 0:02:55]} 5. d4 {[%clk
0:03:02]} 5... Bf5 {[%clk 0:02:54.8]} 6. Bd3 {[%clk 0:03:02.6]} 6... Bxd3 {[%clk
0:02:54.9]} 7. Qxd3 {[%clk 0:03:03.5]} 7... e6 {[%clk 0:02:55.6]} 8. Nf3 {[%clk
0:03:04.4]} 8... Nge7 {[%clk 0:02:55.7]} 9. O-O {[%clk 0:03:04.8]} 9... Rc8
{[%clk 0:02:46.5]} 10. Nc3 {[%clk 0:03:04.6]} 10... Nf5 {[%clk 0:02:42.8]} 11.
Bg5 {[%clk 0:03:03.8]} 11... Qb6 {[%clk 0:02:34.2]} 12. Nxd5 {[%clk 0:03:03.3]}
12... Qa5 {[%clk 0:02:00.5]} 13. Ne3 {[%clk 0:02:58]} 13... g6 {[%clk
0:01:48.7]} 14. Bf6 {[%clk 0:02:52.1]} 14... Rg8 {[%clk 0:01:48.4]} 15. d5
{[%clk 0:02:46.6]} 15... Nb4 {[%clk 0:01:38.9]} 16. Qd2 {[%clk 0:02:44.4]} 16...
Nxe3 {[%clk 0:01:33.6]} 17. dxe6 {[%clk 0:02:35.4]} 17... Ned5 {[%clk
0:01:22.3]} 18. exf7+ {[%clk 0:02:25.3]} 18... Kxf7 {[%clk 0:01:21.4]} 19. Ng5+
{[%clk 0:02:25.6]} 19... Ke8 {[%clk 0:01:17.5]} 20. a3 {[%clk 0:02:15.5]} 20...
Nc6 {[%clk 0:01:17.3]} 21. b4 {[%clk 0:02:14.7]} 21... Qb5 {[%clk 0:01:11.7]}
22. Rfd1 {[%clk 0:02:14.5]} 22... Nce7 {[%clk 0:00:50.1]} 23. Ne6 {[%clk
0:02:14.1]} 23... b6 {[%clk 0:00:39.4]} 24. Rac1 {[%clk 0:02:10.2]} 24... Rxc1
{[%clk 0:00:36.9]} 25. Qxc1 {[%clk 0:02:11.1]} 25... Qd7 {[%clk 0:00:33.3]} 26.
Nxf8 {[%clk 0:01:58.9]} 26... Rxf8 {[%clk 0:00:27.7]} 27. Bxe7 {[%clk
0:01:59.2]} 27... Kxe7 {[%clk 0:00:24.6]} 28. Qg5+ {[%clk 0:01:56.7]} 28... Ke8
{[%clk 0:00:20.6]} 29. e6 {[%clk 0:01:56]} 29... Qxe6 {[%clk 0:00:17.6]} 30.
Qxd5 {[%clk 0:01:42.5]} 30... Qxd5 {[%clk 0:00:17]} 31. Rxd5 {[%clk 0:01:43.4]}
31... Rf4 {[%clk 0:00:16.5]} 32. g3 {[%clk 0:01:43.6]} 32... Rc4 {[%clk
0:00:16.5]} 33. Rd3 {[%clk 0:01:43.9]} 33... Rc1+ {[%clk 0:00:16.4]} 34. Kg2
{[%clk 0:01:44.3]} 34... Rc2 {[%clk 0:00:17.3]} 35. h4 {[%clk 0:01:44.4]} 35...
Ra2 {[%clk 0:00:17.7]} 36. Re3+ {[%clk 0:01:44.7]} 36... Kf7 {[%clk 0:00:18.1]}
37. g4 {[%clk 0:01:45.2]} 37... h5 {[%clk 0:00:18.3]} 38. g5 {[%clk 0:01:44.5]}
38... Ra1 {[%clk 0:00:17.8]} 39. Kg3 {[%clk 0:01:44.6]} 39... a5 {[%clk
0:00:17.7]} 40. Rf3+ {[%clk 0:01:42.5]} 40... Kg7 {[%clk 0:00:16.8]} 41. bxa5
{[%clk 0:01:42.6]} 41... bxa5 {[%clk 0:00:16.9]} 42. Rb3 {[%clk 0:01:43.2]}
42... Kf7 {[%clk 0:00:16.6]} 43. f3 {[%clk 0:01:40.1]} 43... a4 {[%clk
0:00:16.4]} 44. Rc3 {[%clk 0:01:38.6]} 44... Ra2 {[%clk 0:00:15.8]} 45. Rc7+
{[%clk 0:01:34.4]} 45... Kf8 {[%clk 0:00:15.7]} 46. Rc3 {[%clk 0:01:34.3]} 46...
Kf7 {[%clk 0:00:15.9]} 47. Kf4 {[%clk 0:01:34.9]} 47... Rh2 {[%clk 0:00:15.2]}
48. Rc7+ {[%clk 0:01:34.6]} 48... Kf8 {[%clk 0:00:14.8]} 49. Ke5 {[%clk
0:01:33.8]} 49... Rxh4 {[%clk 0:00:14.6]} 50. f4 {[%clk 0:01:30.4]} 50... Kg8
{[%clk 0:00:10.7]} 51. Rc4 {[%clk 0:01:24.3]} 51... Rg4 {[%clk 0:00:09.9]} 52.
Kf6 {[%clk 0:01:21.9]} 52... h4 {[%clk 0:00:08.6]} 53. Kxg6 {[%clk 0:01:22.4]}
53... Kf8 {[%clk 0:00:08.9]} 54. Rxa4 {[%clk 0:01:18.9]} 54... h3 {[%clk
0:00:08.8]} 55. Ra8+ {[%clk 0:01:19.1]} 55... Ke7 {[%clk 0:00:09]} 56. f5 {[%clk
0:01:19.7]} 56... Rh4 {[%clk 0:00:09.2]} 57. f6+ {[%clk 0:01:19.5]} 57... Kd7
{[%clk 0:00:06.9]} 58. Ra7+ {[%clk 0:01:18.7]} 58... Kc6 {[%clk 0:00:06.9]} 59.
f7 {[%clk 0:01:18.6]} 59... h2 {[%clk 0:00:07.1]} 60. f8=Q {[%clk 0:01:18.8]}
60... h1=Q {[%clk 0:00:07.4]} 61. Qa8+ {[%clk 0:01:18.6]} 61... Kd6 {[%clk
0:00:07.6]} 62. Ra6+ {[%clk 0:01:18.2]} 62... Ke5 {[%clk 0:00:07.6]} 63. Ra5+
{[%clk 0:01:12]} 63... Kd4 {[%clk 0:00:07.5]} 64. Qxh1 {[%clk 0:01:09]} 64...
Rxh1 {[%clk 0:00:08.3]} 65. Kf6 {[%clk 0:01:08.1]} 65... Rf1+ {[%clk 0:00:08.3]}
66. Kg7 {[%clk 0:01:08.2]} 66... Kc4 {[%clk 0:00:08.2]} 67. g6 {[%clk
0:01:08.4]} 67... Kd4 {[%clk 0:00:08.4]} 68. Kh7 {[%clk 0:01:08.4]} 68... Rh1+
{[%clk 0:00:08.3]} 69. Kg8 {[%clk 0:01:07.6]} 69... Ke4 {[%clk 0:00:08.8]} 70.
g7 {[%clk 0:01:08]} 70... Rg1 {[%clk 0:00:08.5]} 71. Ra8 {[%clk 0:01:05]} 71...
Ke5 {[%clk 0:00:07.9]} 72. Kf7 {[%clk 0:01:05.3]} 72... Rf1+ {[%clk 0:00:07.7]}
73. Ke7 {[%clk 0:01:05.5]} 1-0

[Event "Early-Titled-Tuesday-Blitz-September-05-2023"]
[Site "Chess.com"]
[Date "2023.09.05"]
[Round "5"]
[White "ChEsper99"]
[Black "zverr1"]
[Result "0-1"]
[WhiteElo "2179"]
[BlackElo "2487"]
[TimeControl "180+1"]
[EndTime "8:54:55 PDT"]
[Termination "zverr1 won on time"]

1. e4 {[%clk 0:03:00.9]} 1... c5 {[%clk 0:02:59.4]} 2. Nf3 {[%clk 0:02:59.5]}
2... d6 {[%clk 0:02:59.9]} 3. Bb5+ {[%clk 0:02:58.8]} 3... Bd7 {[%clk
0:02:58.7]} 4. Bxd7+ {[%clk 0:02:59.1]} 4... Qxd7 {[%clk 0:02:59.6]} 5. c4
{[%clk 0:02:59.5]} 5... Nf6 {[%clk 0:02:56.4]} 6. Nc3 {[%clk 0:02:57.1]} 6... g6
{[%clk 0:02:56.3]} 7. d4 {[%clk 0:02:57.4]} 7... cxd4 {[%clk 0:02:56.3]} 8. Nxd4
{[%clk 0:02:57.1]} 8... Bg7 {[%clk 0:02:57.2]} 9. h3 {[%clk 0:02:49.7]} 9... O-O
{[%clk 0:02:57.6]} 10. Be3 {[%clk 0:02:49.1]} 10... Rc8 {[%clk 0:02:56]} 11. b3
{[%clk 0:02:43.2]} 11... e6 {[%clk 0:02:50.1]} 12. O-O {[%clk 0:02:37.3]} 12...
d5 {[%clk 0:02:50.3]} 13. exd5 {[%clk 0:02:32.8]} 13... exd5 {[%clk 0:02:47.2]}
14. Nxd5 {[%clk 0:02:23.5]} 14... Nxd5 {[%clk 0:02:46.8]} 15. cxd5 {[%clk
0:02:22.9]} 15... Qxd5 {[%clk 0:02:47.7]} 16. Rc1 {[%clk 0:02:02]} 16... Rxc1
{[%clk 0:02:29.4]} 17. Qxc1 {[%clk 0:02:01.6]} 17... Nd7 {[%clk 0:02:12.8]} 18.
Rd1 {[%clk 0:01:58.2]} 18... Nf6 {[%clk 0:02:04.7]} 19. Nf3 {[%clk 0:01:45.9]}
19... Qa5 {[%clk 0:02:02.2]} 20. a4 {[%clk 0:01:39.1]} 20... a6 {[%clk
0:01:48.3]} 21. Rd2 {[%clk 0:01:07.2]} 21... Qb4 {[%clk 0:01:42]} 22. Qc2 {[%clk
0:01:01.4]} 22... Re8 {[%clk 0:01:30.6]} 23. Rd4 {[%clk 0:00:44.3]} 23... Qe7
{[%clk 0:01:24.8]} 24. Rc4 {[%clk 0:00:43.9]} 24... Qd7 {[%clk 0:01:23.4]} 25.
Rc7 {[%clk 0:00:42.2]} 25... Qd5 {[%clk 0:01:23.4]} 26. Qc4 {[%clk 0:00:34.9]}
26... h6 {[%clk 0:01:09.5]} 27. Qxd5 {[%clk 0:00:24.9]} 27... Nxd5 {[%clk
0:01:10.4]} 28. Rxb7 {[%clk 0:00:19.4]} 28... Nxe3 {[%clk 0:01:10.5]} 29. fxe3
{[%clk 0:00:19.9]} 29... Rxe3 {[%clk 0:01:11.3]} 30. Kf2 {[%clk 0:00:18]} 30...
Rc3 {[%clk 0:01:11.4]} 31. Rb6 {[%clk 0:00:17.3]} 31... Rc2+ {[%clk 0:01:09.9]}
32. Kg3 {[%clk 0:00:17.1]} 32... a5 {[%clk 0:01:07]} 33. Rb5 {[%clk 0:00:16.4]}
33... Bc3 {[%clk 0:01:04.6]} 34. Ne5 {[%clk 0:00:07.9]} 34... Rb2 {[%clk
0:00:41.4]} 35. Nc4 {[%clk 0:00:07.9]} 35... Be1+ {[%clk 0:00:32.2]} 36. Kh2
{[%clk 0:00:07.5]} 36... Rb1 {[%clk 0:00:32.3]} 37. Nxa5 {[%clk 0:00:06.8]}
37... Bxa5 {[%clk 0:00:31]} 38. Rxa5 {[%clk 0:00:07.7]} 38... Rxb3 {[%clk
0:00:31.7]} 39. Ra8+ {[%clk 0:00:06.5]} 39... Kg7 {[%clk 0:00:31.5]} 40. a5
{[%clk 0:00:07.1]} 40... h5 {[%clk 0:00:32.1]} 41. a6 {[%clk 0:00:07.7]} 41...
h4 {[%clk 0:00:32.8]} 42. Kg1 {[%clk 0:00:07]} 42... Rb2 {[%clk 0:00:31.6]} 43.
Kf1 {[%clk 0:00:06.8]} 43... Ra2 {[%clk 0:00:31.9]} 44. Kg1 {[%clk 0:00:07]}
44... Kf6 {[%clk 0:00:32.2]} 45. Rh8 {[%clk 0:00:04.2]} 45... Kg5 {[%clk
0:00:31.2]} 46. Ra8 {[%clk 0:00:04.2]} 46... f6 {[%clk 0:00:25.3]} 47. Kh2
{[%clk 0:00:03.3]} 47... Kf4 {[%clk 0:00:23.6]} 48. a7 {[%clk 0:00:02.1]} 48...
Kg5 {[%clk 0:00:17.5]} 0-1

[Event "Early-Titled-Tuesday-Blitz-September-05-2023"]
[Site "Chess.com"]
[Date "2023.09.05"]
[Round "5"]
[White "Mikedannnn"]
[Black "Sjakkerntobi"]
[Result "0-1"]
[WhiteElo "2607"]
[BlackElo "2491"]
[TimeControl "180+1"]
[EndTime "8:54:56 PDT"]
[Termination "Sjakkerntobi won by resignation"]

1. e4 {[%clk 0:03:00.9]} 1... e6 {[%clk 0:02:59.9]} 2. d4 {[%clk 0:02:57]} 2...
d5 {[%clk 0:03:00.6]} 3. Nc3 {[%clk 0:02:52.7]} 3... Bb4 {[%clk 0:03:00.4]} 4.
e5 {[%clk 0:02:52.8]} 4... Ne7 {[%clk 0:03:00.4]} 5. a3 {[%clk 0:02:51.5]} 5...
Bxc3+ {[%clk 0:03:01]} 6. bxc3 {[%clk 0:02:52.4]} 6... c5 {[%clk 0:03:01.9]} 7.
Qg4 {[%clk 0:02:52.9]} 7... cxd4 {[%clk 0:03:01.6]} 8. Qxg7 {[%clk 0:02:52.4]}
8... Rg8 {[%clk 0:03:01.4]} 9. Qxh7 {[%clk 0:02:53.1]} 9... Qc7 {[%clk
0:03:02.2]} 10. Ne2 {[%clk 0:02:52.6]} 10... Nbc6 {[%clk 0:02:58.5]} 11. f4
{[%clk 0:02:52.4]} 11... dxc3 {[%clk 0:02:57.3]} 12. Qd3 {[%clk 0:02:52.2]}
12... Bd7 {[%clk 0:02:36.3]} 13. Nxc3 {[%clk 0:02:52]} 13... a6 {[%clk
0:02:36.6]} 14. h4 {[%clk 0:02:52.4]} 14... O-O-O {[%clk 0:02:35.7]} 15. h5
{[%clk 0:02:52.1]} 15... Nf5 {[%clk 0:02:33.2]} 16. Rh3 {[%clk 0:02:52.1]} 16...
Kb8 {[%clk 0:02:16.3]} 17. Rb1 {[%clk 0:02:51]} 17... Ka8 {[%clk 0:02:15.4]} 18.
h6 {[%clk 0:02:48.9]} 18... Rg6 {[%clk 0:02:15.5]} 19. h7 {[%clk 0:02:48.2]}
19... Rh8 {[%clk 0:02:15.6]} 20. Qd1 {[%clk 0:02:46]} 20... Ncd4 {[%clk
0:02:05.8]} 21. g4 {[%clk 0:02:42.6]} 21... Nxc2+ {[%clk 0:01:28.7]} 22. Qxc2
{[%clk 0:02:40.7]} 22... Rxg4 {[%clk 0:01:28.3]} 23. Bxa6 {[%clk 0:00:44.2]}
23... bxa6 {[%clk 0:01:12.8]} 24. Qe2 {[%clk 0:00:43.8]} 24... Rg3 {[%clk
0:00:39.2]} 25. Rxg3 {[%clk 0:00:34.7]} 25... Nxg3 {[%clk 0:00:40.1]} 26. Qxa6+
{[%clk 0:00:32.6]} 26... Qa7 {[%clk 0:00:39.3]} 27. Qxa7+ {[%clk 0:00:32.1]}
27... Kxa7 {[%clk 0:00:40.2]} 28. Be3+ {[%clk 0:00:30.2]} 28... Ka8 {[%clk
0:00:38.5]} 29. Bc5 {[%clk 0:00:14.2]} 29... Rxh7 {[%clk 0:00:35.4]} 30. Kf2
{[%clk 0:00:14.5]} 30... Nf5 {[%clk 0:00:33]} 31. Nb5 {[%clk 0:00:08.8]} 31...
Bxb5 {[%clk 0:00:23.7]} 32. Rxb5 {[%clk 0:00:09.7]} 32... Rh2+ {[%clk
0:00:20.6]} 33. Kf3 {[%clk 0:00:09]} 33... Rh3+ {[%clk 0:00:21]} 34. Kg2 {[%clk
0:00:08.7]} 34... Rg3+ {[%clk 0:00:20.2]} 35. Kf2 {[%clk 0:00:09.4]} 35... Rc3
{[%clk 0:00:19]} 36. Bd6 {[%clk 0:00:08.9]} 36... Rc4 {[%clk 0:00:18.7]} 37.
Rb8+ {[%clk 0:00:07.5]} 37... Ka7 {[%clk 0:00:18.9]} 38. Rf8 {[%clk 0:00:07.6]}
38... Rxf4+ {[%clk 0:00:19.1]} 39. Ke2 {[%clk 0:00:06.6]} 39... Nd4+ {[%clk
0:00:15.3]} 40. Ke3 {[%clk 0:00:05.6]} 40... Re4+ {[%clk 0:00:16]} 41. Kd3
{[%clk 0:00:06.1]} 41... Nc6 {[%clk 0:00:15.6]} 42. Rxf7+ {[%clk 0:00:05.7]}
42... Kb6 {[%clk 0:00:16.3]} 43. Rd7 {[%clk 0:00:02.6]} 43... Nxe5+ {[%clk
0:00:16.3]} 44. Kc2 {[%clk 0:00:02.6]} 44... Nxd7 {[%clk 0:00:14.1]} 0-1